[Event "Polofinale MCR junioru 2023"]
[Site "Czech Republic"]
[Date "2023.11.11"]
[Round "1.17"]
[White "Davidek, Zdenek"]
[Black "Bednar, Milos"]
[Result "1-0"]
[TimeControl "90 min per 40 moves + 15 min + 30 sec / move from move 1"]
[WhiteFideId "23725001"]
[BlackFideId "23709812"]
[WhiteElo "2099"]
[BlackElo "1833"]

1. d4 {[%clk 01:30:55]} {[%emt 00:00:05]} d5 {[%clk 01:30:54]} {[%emt
00:00:06]} 2. c4 {[%clk 01:31:04]} {[%emt 00:00:21]} e6 {[%clk 01:31:21]}
{[%emt 00:00:04]} 3. Nf3 {[%clk 01:31:20]} {[%emt 00:00:13]} c5 {[%clk
01:31:34]} {[%emt 00:00:18]} 4. cxd5 {[%clk 01:31:29]} {[%emt 00:00:20]} exd5
{[%clk 01:32:01]} {[%emt 00:00:04]} 5. g3 {[%clk 01:31:40]} {[%emt 00:00:19]}
Nc6 {[%clk 01:29:15]} {[%emt 00:03:16]} 6. Bg2 {[%clk 01:31:46]} {[%emt
00:00:22]} Nf6 {[%clk 01:28:33]} {[%emt 00:01:13]} 7. O-O {[%clk 01:32:01]}
{[%emt 00:00:14]} Bf5 {[%clk 01:27:12]} {[%emt 00:01:51]} 8. Nc3 {[%clk
01:29:41]} {[%emt 00:02:50]} c4 {[%clk 01:23:31]} {[%emt 00:04:13]} 9. Bg5
{[%clk 01:25:11]} {[%emt 00:04:59]} Be7 {[%clk 01:17:40]} {[%emt 00:06:21]} 10.
Ne5 {[%clk 01:22:52]} {[%emt 00:02:49]} Qa5 {[%clk 01:04:20]} {[%emt 00:13:50]}
11. Bd2 {[%clk 00:34:33]} {[%emt 00:48:48]} Qd8 {[%clk 00:55:30]} {[%emt
00:09:21]} 12. Nxd5 {[%clk 00:30:52]} {[%emt 00:04:11]} Nxd5 {[%clk 00:55:02]}
{[%emt 00:00:59]} 13. e4 {[%clk 00:31:13]} {[%emt 00:00:08]} Nxd4 {[%clk
00:54:01]} {[%emt 00:01:31]} 14. exd5 {[%clk 00:29:58]} {[%emt 00:01:45]} Qc7
{[%clk 00:53:00]} {[%emt 00:01:32]} 15. Bc3 {[%clk 00:26:05]} {[%emt 00:04:21]}
Nb5 {[%clk 00:50:00]} {[%emt 00:03:31]} 16. Qa4 {[%clk 00:23:34]} {[%emt
00:03:00]} a6 {[%clk 00:49:45]} {[%emt 00:00:46]} 17. Rfe1 {[%clk 00:21:26]}
{[%emt 00:02:38]} O-O {[%clk 00:27:26]} {[%emt 00:22:49]} 18. Qxc4 {[%clk
00:20:39]} {[%emt 00:01:17]} Rac8 {[%clk 00:25:10]} {[%emt 00:02:46]} 19. Qxc7
{[%clk 00:17:44]} {[%emt 00:03:25]} Rxc7 {[%clk 00:25:31]} {[%emt 00:00:10]} 20.
Ba5 {[%clk 00:15:15]} {[%emt 00:02:58]} Rc2 {[%clk 00:25:42]} {[%emt 00:00:19]}
21. g4 {[%clk 00:15:03]} {[%emt 00:00:43]} Bc8 {[%clk 00:25:18]} {[%emt
00:00:54]} 22. Be4 {[%clk 00:14:26]} {[%emt 00:01:06]} Rxb2 {[%clk 00:20:58]}
{[%emt 00:04:51]} 23. Nc4 {[%clk 00:14:48]} {[%emt 00:00:07]} Rb4 {[%clk
00:21:09]} {[%emt 00:00:20]} 24. Bxb4 {[%clk 00:14:20]} {[%emt 00:00:58]} Bxb4
{[%clk 00:21:34]} {[%emt 00:00:05]} 25. Re3 {[%clk 00:08:31]} {[%emt 00:06:19]}
Bxg4 {[%clk 00:21:38]} {[%emt 00:00:26]} 26. Rb1 {[%clk 00:05:30]} {[%emt
00:03:31]} Bc5 {[%clk 00:20:47]} {[%emt 00:01:21]} 27. Rg3 {[%clk 00:05:43]}
{[%emt 00:00:17]} Be2 {[%clk 00:19:53]} {[%emt 00:01:24]} 28. Bd3 {[%clk
00:03:50]} {[%emt 00:02:23]} Bxd3 {[%clk 00:17:28]} {[%emt 00:02:55]} 29. Rxd3
{[%clk 00:04:14]} {[%emt 00:00:05]} Bd6 {[%clk 00:13:48]} {[%emt 00:04:10]} 30.
a4 {[%clk 00:03:59]} {[%emt 00:00:44]} Rc8 {[%clk 00:14:15]} {[%emt 00:00:04]}
31. axb5 {[%clk 00:04:16]} {[%emt 00:00:14]} Rxc4 {[%clk 00:13:16]} {[%emt
00:01:29]} 32. bxa6 {[%clk 00:04:40]} {[%emt 00:00:05]} bxa6 {[%clk 00:13:42]}
{[%emt 00:00:05]} 33. Rb6 {[%clk 00:05:02]} {[%emt 00:00:08]} Rg4+ {[%clk
00:14:10]} {[%emt 00:00:01]} 34. Kf1 {[%clk 00:04:35]} {[%emt 00:00:56]} Rg1+
{[%clk 00:13:59]} {[%emt 00:00:10]} 1-0

[Event "Polofinale MCR junioru 2023"]
[Site "Czech Republic"]
[Date "2023.11.11"]
[Round "1.18"]
[White "Siles, Jan"]
[Black "Janous, Marek"]
[Result "1-0"]
[TimeControl "90 min per 40 moves + 15 min + 30 sec / move from move 1"]
[WhiteFideId "23715405"]
[BlackFideId "23709650"]
[WhiteElo "1829"]
[BlackElo "2098"]

1. d4 {[%clk 01:30:56]} {[%emt 00:00:03]} Nf6 {[%clk 01:30:00]} {[%emt
00:01:00]} 2. Nf3 {[%clk 01:31:08]} {[%emt 00:00:18]} d5 {[%clk 01:30:21]}
{[%emt 00:00:09]} 3. c4 {[%clk 01:30:19]} {[%emt 00:01:20]} e6 {[%clk
01:30:43]} {[%emt 00:00:08]} 4. Bg5 {[%clk 01:28:03]} {[%emt 00:02:46]} Nbd7
{[%clk 01:26:44]} {[%emt 00:04:29]} 5. cxd5 {[%clk 01:25:33]} {[%emt 00:03:00]}
exd5 {[%clk 01:25:57]} {[%emt 00:01:17]} 6. Nc3 {[%clk 01:25:17]} {[%emt
00:00:46]} c6 {[%clk 01:26:17]} {[%emt 00:00:10]} 7. e3 {[%clk 01:23:03]}
{[%emt 00:02:45]} Be7 {[%clk 01:26:29]} {[%emt 00:00:17]} 8. Bd3 {[%clk
01:23:02]} {[%emt 00:00:32]} O-O {[%clk 01:26:48]} {[%emt 00:00:11]} 9. Qc2
{[%clk 01:22:53]} {[%emt 00:00:39]} h6 {[%clk 01:21:17]} {[%emt 00:06:00]} 10.
Bh4 {[%clk 01:22:59]} {[%emt 00:00:24]} Re8 {[%clk 01:20:24]} {[%emt 00:01:23]}
11. O-O {[%clk 01:22:04]} {[%emt 00:01:26]} a6 {[%clk 01:05:22]} {[%emt
00:15:32]} 12. Nd2 {[%clk 01:16:46]} {[%emt 00:05:48]} Nb6 {[%clk 00:48:07]}
{[%emt 00:17:45]} 13. Rad1 {[%clk 01:13:54]} {[%emt 00:03:22]} Bg4 {[%clk
00:44:43]} {[%emt 00:03:53]} 14. f3 {[%clk 01:14:00]} {[%emt 00:00:26]} Be6
{[%clk 00:44:44]} {[%emt 00:00:27]} 15. Bf2 {[%clk 01:13:08]} {[%emt 00:01:22]}
Rc8 {[%clk 00:34:37]} {[%emt 00:10:38]} 16. e4 {[%clk 01:07:36]} {[%emt
00:06:03]} dxe4 {[%clk 00:33:48]} {[%emt 00:01:18]} 17. Ndxe4 {[%clk 01:05:22]}
{[%emt 00:02:44]} Nbd7 {[%clk 00:19:30]} {[%emt 00:14:48]} 18. Rfe1 {[%clk
01:02:33]} {[%emt 00:03:19]} Nd5 {[%clk 00:13:59]} {[%emt 00:06:00]} 19. Qd2
{[%clk 01:01:52]} {[%emt 00:01:12]} Nxc3 {[%clk 00:08:20]} {[%emt 00:06:08]} 20.
bxc3 {[%clk 01:00:02]} {[%emt 00:02:21]} Qa5 {[%clk 00:08:24]} {[%emt
00:00:26]} 21. Bb1 {[%clk 00:57:26]} {[%emt 00:03:06]} Nb6 {[%clk 00:05:15]}
{[%emt 00:03:39]} 22. Ng3 {[%clk 00:53:32]} {[%emt 00:04:24]} Ba3 {[%clk
00:02:15]} {[%emt 00:03:30]} 23. Qc2 {[%clk 00:52:15]} {[%emt 00:01:47]} g6
{[%clk 00:02:30]} {[%emt 00:00:15]} 24. Be3 {[%clk 00:52:02]} {[%emt 00:00:43]}
Qa4 {[%clk 00:01:12]} {[%emt 00:01:47]} 25. Qf2 {[%clk 00:50:16]} {[%emt
00:02:16]} Bf8 {[%clk 00:00:44]} {[%emt 00:00:58]} 26. Ne4 {[%clk 00:50:08]}
{[%emt 00:00:38]} Nd5 {[%clk 00:00:44]} {[%emt 00:00:30]} 27. Bd2 {[%clk
00:47:23]} {[%emt 00:03:15]} f5 {[%clk 00:00:34]} {[%emt 00:00:40]} 28. Qg3
{[%clk 00:42:58]} {[%emt 00:04:56]} Kh7 {[%clk 00:00:37]} {[%emt 00:00:27]} 29.
Nd6 {[%clk 00:39:13]} {[%emt 00:04:14]} Bxd6 {[%clk 00:00:40]} {[%emt
00:00:27]} 30. Qxd6 {[%clk 00:39:39]} {[%emt 00:00:04]} Rcd8 {[%clk 00:00:39]}
{[%emt 00:00:31]} 31. Qg3 {[%clk 00:39:40]} {[%emt 00:00:29]} Bf7 {[%clk
00:00:43]} {[%emt 00:00:26]} 32. Qh4 {[%clk 00:38:45]} {[%emt 00:01:25]} f4
{[%clk 00:00:33]} {[%emt 00:00:40]} 33. Bxf4 {[%clk 00:38:33]} {[%emt
00:00:42]} Nxf4 {[%clk 00:00:57]} {[%emt 00:00:06]} 34. Qxf4 {[%clk 00:38:40]}
{[%emt 00:00:23]} Kg7 {[%clk 00:00:54]} {[%emt 00:00:33]} 35. Qd2 {[%clk
00:35:11]} {[%emt 00:03:58]} Qc4 {[%clk 00:00:41]} {[%emt 00:00:43]} 36. Rxe8
{[%clk 00:33:49]} {[%emt 00:01:53]} Rxe8 {[%clk 00:01:03]} {[%emt 00:00:08]} 37.
Re1 {[%clk 00:34:09]} {[%emt 00:00:10]} Qd5 {[%clk 00:00:36]} {[%emt 00:00:56]}
38. Rxe8 {[%clk 00:33:35]} {[%emt 00:01:04]} Bxe8 {[%clk 00:01:05]} {[%emt
00:00:01]} 39. Qe3 {[%clk 00:33:41]} {[%emt 00:00:25]} Bf7 {[%clk 00:01:05]}
{[%emt 00:00:29]} 40. Kf2 {[%clk 00:33:45]} {[%emt 00:00:26]} Qc4 {[%clk
00:01:02]} {[%emt 00:00:32]} 41. h4 {[%clk 00:29:59]} {[%emt 00:04:16]} h5
{[%clk 00:00:45]} {[%emt 00:00:47]} 42. Qe5+ {[%clk 00:27:29]} {[%emt
00:03:01]} Kg8 {[%clk 00:12:52]} {[%emt 00:03:21]} 43. Qf6 {[%clk 00:39:57]}
{[%emt 00:03:03]} Kh7 {[%clk 00:12:07]} {[%emt 00:01:14]} 44. g4 {[%clk
00:38:46]} {[%emt 00:01:42]} Kg8 {[%clk 00:04:53]} {[%emt 00:07:44]} 45. Bxg6
{[%clk 00:35:02]} {[%emt 00:04:14]} Qxa2+ {[%clk 00:05:11]} {[%emt 00:00:12]}
46. Ke3 {[%clk 00:30:06]} {[%emt 00:05:26]} Bc4 {[%clk 00:03:39]} {[%emt
00:02:02]} 47. Bxh5 {[%clk 00:27:12]} {[%emt 00:03:24]} Qe2+ {[%clk 00:02:17]}
{[%emt 00:01:51]} 48. Kf4 {[%clk 00:27:37]} {[%emt 00:00:05]} Bd5 {[%clk
00:00:36]} {[%emt 00:02:11]} 49. Kg5 {[%clk 00:21:51]} {[%emt 00:06:16]} Qe3+
{[%clk 00:00:33]} {[%emt 00:00:33]} 50. f4 {[%clk 00:21:28]} {[%emt 00:00:54]}
Qe6 {[%clk 00:00:33]} {[%emt 00:00:30]} 51. Qxe6+ {[%clk 00:19:06]} {[%emt
00:02:50]} Bxe6 {[%clk 00:01:02]} {[%emt 00:00:02]} 52. Kf6 {[%clk 00:19:14]}
{[%emt 00:00:22]} Bc4 {[%clk 00:01:10]} {[%emt 00:00:21]} 53. Ke7 {[%clk
00:15:45]} {[%emt 00:04:00]} Kg7 {[%clk 00:00:37]} {[%emt 00:01:03]} 54. f5
{[%clk 00:15:51]} {[%emt 00:00:24]} a5 {[%clk 00:00:48]} {[%emt 00:00:19]} 55.
f6 {[%clk 00:16:02]} {[%emt 00:00:19]} Kh6 {[%clk 00:01:06]} {[%emt 00:00:11]}
56. Bf7 {[%clk 00:15:40]} {[%emt 00:00:52]} Bxf7 {[%clk 00:01:09]} {[%emt
00:00:27]} 57. Kxf7 {[%clk 00:16:05]} {[%emt 00:00:06]} a4 {[%clk 00:01:35]}
{[%emt 00:00:04]} 58. Ke7 {[%clk 00:16:26]} {[%emt 00:00:09]} a3 {[%clk
00:01:58]} {[%emt 00:00:07]} 59. f7 {[%clk 00:16:51]} {[%emt 00:00:05]} 1-0

[Event "Polofinale MCR junioru 2023"]
[Site "Czech Republic"]
[Date "2023.11.11"]
[Round "1.19"]
[White "Lang, Simon"]
[Black "Mydlar, Matej"]
[Result "1-0"]
[TimeControl "90 min per 40 moves + 15 min + 30 sec / move from move 1"]
[WhiteFideId "23712449"]
[BlackFideId "23735074"]
[WhiteElo "2090"]
[BlackElo "1809"]

1. e4 {[%clk 01:29:22]} {[%emt 00:01:37]} c5 {[%clk 01:30:43]} {[%emt
00:00:17]} 2. Nf3 {[%clk 01:29:25]} {[%emt 00:00:27]} a6 {[%clk 01:30:28]}
{[%emt 00:00:45]} 3. Nc3 {[%clk 01:28:35]} {[%emt 00:01:21]} Nc6 {[%clk
01:29:30]} {[%emt 00:01:26]} 4. d4 {[%clk 01:28:13]} {[%emt 00:00:53]} cxd4
{[%clk 01:28:55]} {[%emt 00:01:05]} 5. Nxd4 {[%clk 01:28:37]} {[%emt 00:00:07]}
d6 {[%clk 01:26:41]} {[%emt 00:02:42]} 6. Be3 {[%clk 01:24:26]} {[%emt
00:04:42]} Nf6 {[%clk 01:26:16]} {[%emt 00:00:55]} 7. f3 {[%clk 01:23:00]}
{[%emt 00:01:56]} e5 {[%clk 01:21:53]} {[%emt 00:04:53]} 8. Nb3 {[%clk
01:20:43]} {[%emt 00:02:47]} Be6 {[%clk 01:20:34]} {[%emt 00:01:49]} 9. a4
{[%clk 01:16:40]} {[%emt 00:04:33]} Na5 {[%clk 01:18:46]} {[%emt 00:02:18]} 10.
Nxa5 {[%clk 01:09:35]} {[%emt 00:07:36]} Qxa5 {[%clk 01:18:59]} {[%emt
00:00:16]} 11. Qd2 {[%clk 01:09:41]} {[%emt 00:00:24]} d5 {[%clk 01:17:37]}
{[%emt 00:01:52]} 12. Nxd5 {[%clk 01:03:34]} {[%emt 00:06:37]} Qxd2+ {[%clk
01:17:17]} 13. Kxd2 {[%clk 01:02:47]} {[%emt 00:02:07]} Nxd5 {[%clk 01:17:31]}
{[%emt 00:00:15]} 14. exd5 {[%clk 01:03:11]} {[%emt 00:00:06]} Bxd5 {[%clk
01:17:40]} {[%emt 00:00:21]} 15. c4 {[%clk 01:02:03]} {[%emt 00:01:38]} Be6
{[%clk 01:17:37]} {[%emt 00:00:33]} 16. a5 {[%clk 00:58:51]} {[%emt 00:03:43]}
Bb4+ {[%clk 01:13:24]} {[%emt 00:04:43]} 17. Kc2 {[%clk 00:56:23]} {[%emt
00:02:58]} Rc8 {[%clk 01:11:11]} {[%emt 00:02:42]} 18. Kb3 {[%clk 00:54:32]}
{[%emt 00:02:22]} Bc5 {[%clk 01:09:58]} {[%emt 00:01:42]} 19. Bxc5 {[%clk
00:53:10]} {[%emt 00:01:53]} Rxc5 {[%clk 01:08:30]} {[%emt 00:01:58]} 20. Kc3
{[%clk 00:51:58]} {[%emt 00:01:42]} Ke7 {[%clk 01:07:25]} {[%emt 00:01:35]} 21.
Be2 {[%clk 00:48:20]} {[%emt 00:04:09]} Rd8 {[%clk 01:05:54]} {[%emt 00:02:01]}
22. b3 {[%clk 00:41:46]} {[%emt 00:07:04]} Rc6 {[%clk 00:55:10]} {[%emt
00:11:13]} 23. Rhd1 {[%clk 00:37:25]} {[%emt 00:04:51]} Rb8 {[%clk 00:49:55]}
{[%emt 00:05:44]} 24. Rd2 {[%clk 00:33:57]} {[%emt 00:03:59]} b5 {[%clk
00:43:27]} {[%emt 00:06:58]} 25. axb6 {[%clk 00:33:19]} {[%emt 00:01:09]} Rcxb6
{[%clk 00:41:59]} {[%emt 00:01:57]} 26. Rb2 {[%clk 00:33:13]} {[%emt 00:00:36]}
Rc6 {[%clk 00:31:48]} {[%emt 00:10:41]} 27. Ra5 {[%clk 00:29:19]} {[%emt
00:04:24]} f6 {[%clk 00:28:14]} {[%emt 00:04:02]} 28. b4 {[%clk 00:28:47]}
{[%emt 00:01:04]} Bc8 {[%clk 00:27:35]} {[%emt 00:01:07]} 29. c5 {[%clk
00:28:45]} {[%emt 00:00:33]} f5 {[%clk 00:27:24]} {[%emt 00:00:41]} 30. Bc4
{[%clk 00:28:17]} {[%emt 00:00:58]} g6 {[%clk 00:20:57]} {[%emt 00:06:58]} 31.
Rba2 {[%clk 00:28:23]} {[%emt 00:00:24]} Ra8 {[%clk 00:20:49]} {[%emt
00:00:38]} 32. Bd5 {[%clk 00:28:28]} {[%emt 00:00:25]} 1-0

[Event "Polofinale MCR junioru 2023"]
[Site "Czech Republic"]
[Date "2023.11.11"]
[Round "1.20"]
[White "Hampl, David"]
[Black "Mach, Petr"]
[Result "0-1"]
[TimeControl "90 min per 40 moves + 15 min + 30 sec / move from move 1"]
[WhiteFideId "398802"]
[BlackFideId "383546"]
[WhiteElo "1801"]
[BlackElo "2084"]

1. d4 {[%clk 01:30:57]} {[%emt 00:00:02]} g6 {[%clk 01:30:52]} {[%emt
00:00:09]} 2. e4 {[%clk 01:31:09]} {[%emt 00:00:18]} Bg7 {[%clk 01:31:19]}
{[%emt 00:00:03]} 3. Nc3 {[%clk 01:31:24]} {[%emt 00:00:14]} d6 {[%clk
01:31:47]} {[%emt 00:00:03]} 4. Bf4 {[%clk 01:30:08]} {[%emt 00:01:46]} Nd7
{[%clk 01:32:04]} {[%emt 00:00:13]} 5. Nf3 {[%clk 01:29:35]} {[%emt 00:01:02]}
e5 {[%clk 01:29:08]} {[%emt 00:03:27]} 6. Bg5 {[%clk 01:27:11]} {[%emt
00:02:54]} f6 {[%clk 01:25:13]} {[%emt 00:04:24]} 7. Be3 {[%clk 01:27:23]}
{[%emt 00:00:18]} Ne7 {[%clk 01:24:59]} {[%emt 00:00:45]} 8. Qd2 {[%clk
01:25:43]} {[%emt 00:02:10]} Nc6 {[%clk 01:13:54]} {[%emt 00:11:36]} 9. O-O-O
{[%clk 01:24:49]} {[%emt 00:01:24]} exd4 {[%clk 01:09:01]} {[%emt 00:05:23]} 10.
Nxd4 {[%clk 01:22:56]} {[%emt 00:02:22]} Nde5 {[%clk 01:09:20]} {[%emt
00:00:12]} 11. h3 {[%clk 01:18:04]} {[%emt 00:05:22]} Nxd4 {[%clk 01:06:03]}
{[%emt 00:03:47]} 12. Qxd4 {[%clk 01:15:28]} {[%emt 00:03:06]} Be6 {[%clk
01:01:47]} {[%emt 00:04:46]} 13. Bb5+ {[%clk 01:09:33]} {[%emt 00:06:25]} Nc6
{[%clk 00:58:55]} {[%emt 00:03:22]} 14. f4 {[%clk 01:03:00]} {[%emt 00:07:03]}
O-O {[%clk 00:51:41]} {[%emt 00:07:44]} 15. Qa4 {[%clk 01:01:58]} {[%emt
00:01:32]} Ne7 {[%clk 00:43:52]} {[%emt 00:08:19]} 16. Bc4 {[%clk 00:55:08]}
{[%emt 00:07:21]} Bf7 {[%clk 00:38:48]} {[%emt 00:05:33]} 17. g4 {[%clk
00:51:31]} {[%emt 00:04:07]} Qe8 {[%clk 00:36:45]} {[%emt 00:02:33]} 18. Qb3
{[%clk 00:49:33]} {[%emt 00:02:28]} Bxc4 {[%clk 00:25:52]} {[%emt 00:11:23]} 19.
Qxc4+ {[%clk 00:49:51]} {[%emt 00:00:12]} Rf7 {[%clk 00:26:17]} {[%emt
00:00:05]} 20. f5 {[%clk 00:43:01]} {[%emt 00:07:20]} gxf5 {[%clk 00:24:37]}
{[%emt 00:02:11]} 21. gxf5 {[%clk 00:37:17]} {[%emt 00:06:14]} Nxf5 {[%clk
00:24:50]} {[%emt 00:00:18]} 22. Bd2 {[%clk 00:29:31]} {[%emt 00:08:16]} Nh4
{[%clk 00:22:09]} {[%emt 00:03:11]} 23. Rdf1 {[%clk 00:27:35]} {[%emt
00:02:26]} Qe5 {[%clk 00:16:32]} {[%emt 00:06:06]} 24. Rhg1 {[%clk 00:23:33]}
{[%emt 00:04:32]} Re8 {[%clk 00:13:48]} {[%emt 00:03:14]} 25. Nd5 {[%clk
00:17:15]} {[%emt 00:06:49]} Ng6 {[%clk 00:12:12]} {[%emt 00:02:06]} 26. Rg4
{[%clk 00:16:49]} {[%emt 00:00:55]} c6 {[%clk 00:08:04]} {[%emt 00:04:38]} 27.
Ne3 {[%clk 00:12:46]} {[%emt 00:04:33]} d5 {[%clk 00:06:10]} {[%emt 00:02:24]}
28. exd5 {[%clk 00:08:44]} {[%emt 00:04:32]} f5 {[%clk 00:05:00]} {[%emt
00:01:41]} 29. dxc6 {[%clk 00:08:36]} {[%emt 00:00:38]} Qxb2+ {[%clk 00:04:15]}
{[%emt 00:01:15]} 30. Kd1 {[%clk 00:09:03]} {[%emt 00:00:02]} b5 {[%clk
00:02:27]} {[%emt 00:02:18]} 31. Qd5 {[%clk 00:08:34]} {[%emt 00:00:59]} Qb1+
{[%clk 00:01:45]} {[%emt 00:01:12]} 32. Ke2 {[%clk 00:04:05]} {[%emt 00:04:59]}
Qxc2 {[%clk 00:01:56]} {[%emt 00:00:19]} 33. Rc1 {[%clk 00:02:52]} {[%emt
00:01:43]} Qxc1 {[%clk 00:01:11]} {[%emt 00:01:16]} 34. Bxc1 {[%clk 00:03:11]}
{[%emt 00:00:11]} fxg4 {[%clk 00:01:37]} {[%emt 00:00:04]} 35. Qxb5 {[%clk
00:01:54]} {[%emt 00:01:47]} Nf4+ {[%clk 00:01:27]} {[%emt 00:00:40]} 36. Kd1
{[%clk 00:01:37]} {[%emt 00:00:47]} Rd8+ {[%clk 00:01:27]} {[%emt 00:00:29]} 37.
Kc2 {[%clk 00:01:29]} {[%emt 00:00:39]} gxh3 {[%clk 00:01:30]} {[%emt
00:00:28]} 38. Ng4 {[%clk 00:01:23]} {[%emt 00:00:36]} Ne6 {[%clk 00:01:25]}
{[%emt 00:00:35]} 39. Be3 {[%clk 00:00:56]} {[%emt 00:00:57]} Nc7 {[%clk
00:00:49]} {[%emt 00:01:06]} 40. Qg5 {[%clk 00:01:01]} {[%emt 00:00:25]} Rd6
{[%clk 00:00:50]} {[%emt 00:00:29]} 41. Qc5 {[%clk 00:00:35]} {[%emt 00:00:57]}
Rg6 {[%clk 00:13:51]} {[%emt 00:02:28]} 42. Nf2 {[%clk 00:10:09]} {[%emt
00:05:56]} Rg2 {[%clk 00:08:08]} {[%emt 00:06:13]} 43. Kb3 {[%clk 00:07:02]}
{[%emt 00:03:37]} h2 {[%clk 00:06:36]} {[%emt 00:02:02]} 44. Nh1 {[%clk
00:05:29]} {[%emt 00:02:03]} Rb2+ {[%clk 00:07:02]} {[%emt 00:00:05]} 45. Ka4
{[%clk 00:05:16]} {[%emt 00:00:42]} Rxa2+ {[%clk 00:07:26]} {[%emt 00:00:06]}
46. Kb3 {[%clk 00:05:24]} {[%emt 00:00:22]} Rb2+ {[%clk 00:07:51]} {[%emt
00:00:04]} 47. Ka4 {[%clk 00:05:23]} {[%emt 00:00:32]} Rb1 {[%clk 00:06:13]}
{[%emt 00:02:08]} 48. Bc1 {[%clk 00:05:29]} {[%emt 00:00:24]} Na6 {[%clk
00:05:21]} {[%emt 00:01:20]} 49. Qc2 {[%clk 00:04:56]} {[%emt 00:01:05]} Ra1+
{[%clk 00:04:43]} {[%emt 00:01:09]} 50. Kb5 {[%clk 00:03:57]} {[%emt 00:01:29]}
Nc7+ {[%clk 00:04:23]} {[%emt 00:00:48]} 51. Kc5 {[%clk 00:03:52]} {[%emt
00:00:37]} Ra5+ {[%clk 00:03:59]} {[%emt 00:00:53]} 52. Kb4 {[%clk 00:03:57]}
{[%emt 00:00:26]} Rb5+ {[%clk 00:04:13]} {[%emt 00:00:15]} 53. Ka4 {[%clk
00:04:11]} {[%emt 00:00:17]} Rb6 {[%clk 00:03:15]} {[%emt 00:01:28]} 54. Be3
{[%clk 00:01:22]} {[%emt 00:03:19]} Ra6+ {[%clk 00:03:38]} {[%emt 00:00:07]} 55.
Kb3 {[%clk 00:01:21]} {[%emt 00:00:31]} Ra1 {[%clk 00:03:20]} {[%emt 00:00:48]}
56. Qxh2 {[%clk 00:01:11]} {[%emt 00:00:40]} Rb1+ {[%clk 00:02:13]} {[%emt
00:01:32]} 57. Kc4 {[%clk 00:01:10]} {[%emt 00:00:35]} a5 {[%clk 00:02:19]}
{[%emt 00:00:24]} 58. Ng3 {[%clk 00:00:35]} {[%emt 00:01:05]} Rb4+ {[%clk
00:02:35]} {[%emt 00:00:14]} 59. Kd3 {[%clk 00:00:44]} {[%emt 00:00:21]} Rb3+
{[%clk 00:02:57]} {[%emt 00:00:07]} 60. Ke2 {[%clk 00:00:46]} {[%emt 00:00:29]}
Re7 {[%clk 00:03:09]} {[%emt 00:00:17]} 61. Nf1 {[%clk 00:00:50]} {[%emt
00:00:26]} Rexe3+ {[%clk 00:03:20]} {[%emt 00:00:20]} 62. Kd1 {[%clk 00:00:35]}
{[%emt 00:00:45]} Rb1+ {[%clk 00:03:42]} {[%emt 00:00:08]} 63. Kd2 {[%clk
00:00:42]} {[%emt 00:00:23]} Rb2+ {[%clk 00:04:07]} {[%emt 00:00:04]} 64. Kxe3
{[%clk 00:01:06]} {[%emt 00:00:05]} Rxh2 {[%clk 00:04:30]} {[%emt 00:00:08]} 65.
Nxh2 {[%clk 00:01:31]} {[%emt 00:00:05]} Kf7 {[%clk 00:04:23]} {[%emt
00:00:36]} 66. Kd3 {[%clk 00:01:59]} {[%emt 00:00:03]} Ke6 {[%clk 00:04:44]}
{[%emt 00:00:08]} 0-1

[Event "Polofinale MCR junioru 2023"]
[Site "Czech Republic"]
[Date "2023.11.11"]
[Round "1.21"]
[White "Jirasko, Miroslav"]
[Black "Jurok, Vojtech"]
[Result "1-0"]
[TimeControl "90 min per 40 moves + 15 min + 30 sec / move from move 1"]
[WhiteFideId "23729414"]
[BlackFideId "23741023"]
[WhiteElo "2084"]
[BlackElo "1801"]

1. e4 {[%clk 01:30:46]} {[%emt 00:00:06]} c5 {[%clk 01:30:44]} {[%emt
00:00:25]} 2. Nf3 {[%clk 01:30:47]} {[%emt 00:00:28]} g6 {[%clk 01:30:54]}
{[%emt 00:00:20]} 3. c4 {[%clk 01:29:16]} {[%emt 00:02:01]} Nc6 {[%clk
01:30:14]} {[%emt 00:01:10]} 4. d4 {[%clk 01:29:41]} {[%emt 00:00:05]} cxd4
{[%clk 01:30:34]} {[%emt 00:00:11]} 5. Nxd4 {[%clk 01:30:06]} {[%emt 00:00:05]}
Nf6 {[%clk 01:30:53]} {[%emt 00:00:10]} 6. Nc3 {[%clk 01:30:16]} {[%emt
00:00:19]} Nxd4 {[%clk 01:31:05]} {[%emt 00:00:18]} 7. Qxd4 {[%clk 01:30:39]}
{[%emt 00:00:07]} d6 {[%clk 01:31:27]} {[%emt 00:00:08]} 8. Be3 {[%clk
01:27:04]} {[%emt 00:04:05]} Bg7 {[%clk 01:29:18]} {[%emt 00:02:39]} 9. Be2
{[%clk 01:25:20]} {[%emt 00:02:14]} O-O {[%clk 01:29:09]} {[%emt 00:00:39]} 10.
Qd2 {[%clk 01:25:42]} {[%emt 00:00:08]} Qa5 {[%clk 01:25:47]} {[%emt 00:03:52]}
11. O-O {[%clk 01:26:02]} {[%emt 00:00:10]} Be6 {[%clk 01:21:42]} {[%emt
00:04:35]} 12. f3 {[%clk 01:24:03]} {[%emt 00:02:29]} Rfc8 {[%clk 01:17:47]}
{[%emt 00:04:25]} 13. b3 {[%clk 01:23:50]} {[%emt 00:00:42]} a6 {[%clk
01:17:02]} {[%emt 00:01:15]} 14. Rfc1 {[%clk 01:16:15]} {[%emt 00:08:05]} Nd7
{[%clk 01:10:25]} {[%emt 00:07:08]} 15. Rab1 {[%clk 01:12:42]} {[%emt
00:04:02]} Qb4 {[%clk 00:59:59]} {[%emt 00:10:56]} 16. Rc2 {[%clk 00:59:20]}
{[%emt 00:13:52]} b5 {[%clk 00:42:05]} {[%emt 00:18:25]} 17. Nd5 {[%clk
00:56:38]} {[%emt 00:03:12]} Qxd2 {[%clk 00:41:23]} {[%emt 00:01:12]} 18. Rxd2
{[%clk 00:57:02]} {[%emt 00:00:06]} Bxd5 {[%clk 00:39:28]} {[%emt 00:02:25]} 19.
Rxd5 {[%clk 00:57:27]} {[%emt 00:00:05]} bxc4 {[%clk 00:31:01]} {[%emt
00:08:58]} 20. Bxc4 {[%clk 00:57:46]} {[%emt 00:00:10]} a5 {[%clk 00:23:32]}
{[%emt 00:07:59]} 21. Rb5 {[%clk 00:43:09]} {[%emt 00:15:07]} Kf8 {[%clk
00:15:35]} {[%emt 00:08:27]} 22. Bd5 {[%clk 00:36:03]} {[%emt 00:07:35]} Rcb8
{[%clk 00:13:41]} {[%emt 00:02:25]} 23. Bxa8 {[%clk 00:34:38]} {[%emt
00:01:55]} Rxa8 {[%clk 00:12:30]} {[%emt 00:01:41]} 24. Rc1 {[%clk 00:34:55]}
{[%emt 00:00:12]} Bb2 {[%clk 00:12:17]} {[%emt 00:00:43]} 25. Rc7 {[%clk
00:35:10]} {[%emt 00:00:15]} 1-0